fUST/lending_fUST_20260101
["ID","MTS","AMOUNT","RATE_DAILY","PERIOD"]
[400213832,1767199841312,-500.0,0.00024109,2]
[400213833,1767199841322,-2983.45,0.00024109,2]
[400213834,1767199841332,-9696.43,0.00024109,2]
[400213835,1767199841341,-500.0,0.00024109,2]
[400213836,1767199841351,-2098.98,0.00024109,2]
[400213837,1767199841360,-500.0,0.00024109,2]
[400213838,1767199841369,-1364.0,0.00024179,2]
[400213839,1767199841378,-2156.0,0.00024179,2]
[400213840,1767199841388,-627.0,0.00024179,2]
[400213842,1767199841397,-287.18556852,0.00024241,2]
[400213844,1767199841406,-151.0,0.00024269,2]
[400213845,1767199841415,-1089.48,0.00024383,2]
[400213847,1767199841425,-707.69,0.00024383,2]
[400213849,1767199841435,-500.0,0.00024383,2]
[400213851,1767199841444,-2983.45,0.00024383,2]
[400213853,1767199841454,-9696.43,0.00024383,2]
[400213866,1767199841574,-254.06268095,0.00024383,2]
[400213868,1767199841584,-2098.98,0.00024383,2]
[400213870,1767199841593,-500.0,0.00024383,2]
[400213872,1767199841602,-10000.0,0.00024557,2]
[400213874,1767199841612,-1089.48,0.00024657,2]
[400213876,1767199841621,-707.69,0.00024657,2]
[400213878,1767199841630,-500.0,0.00024657,2]
[400213880,1767199841640,-2983.45,0.00024657,2]
[400213882,1767199841649,-9696.43,0.00024657,2]
[400213884,1767199841658,-2098.98,0.00024657,2]
[400213886,1767199841667,-500.0,0.00024657,2]
[400213888,1767199841677,-150.0,0.00024658,2]
[400213889,1767199841686,-150.0,0.00024658,2]
[400213891,1767199841695,-705.18345977,0.000247,2]
[400213893,1767199841705,-15587.9,0.000247,3]
[400213895,1767199841722,-1041.66666667,0.000247,3]
[400213897,1767199841733,-173.85,0.000248,7]
[400213899,1767199841742,-245.13,0.000249,2]
[400213901,1767199841751,-371114.733813,0.000249,2]
[400213903,1767199841761,-1089.48,0.00024931,2]
[400213905,1767199841771,-707.69,0.00024931,2]
[400213907,1767199841782,-500.0,0.00024931,2]
[400213909,1767199841792,-2983.45,0.00024931,2]
[400213911,1767199841801,-9696.43,0.00024931,2]
[400213913,1767199841811,-2098.98,0.00024931,2]
[400213915,1767199841821,-500.0,0.00024931,2]
[400213917,1767199841830,-9686.67,0.00025,2]
[400213918,1767199841845,-1089.48,0.00025205,2]
[400213920,1767199841855,-707.69,0.00025205,2]
[400213922,1767199841865,-500.0,0.00025205,2]
[400213925,1767199841881,-2983.45,0.00025205,2]
[400213926,1767199841892,-9696.43,0.00025205,2]
[400213928,1767199841902,-2098.98,0.00025205,2]
[400213930,1767199841912,-500.0,0.00025205,2]
[400213932,1767199841923,-151.50509152,0.00025205,2]
[400213933,1767199841933,-748.66372335,0.00025252,2]
[400213934,1767199841942,-1089.48,0.00025479,2]
[400213935,1767199841955,-707.69,0.00025479,2]
[400213936,1767199841965,-500.0,0.00025479,2]
[400213937,1767199841975,-2983.45,0.00025479,2]
[400213938,1767199841984,-9696.43,0.00025479,2]
[400213939,1767199841994,-2098.98,0.00025479,2]
[400213940,1767199842004,-500.0,0.00025479,2]
[400213941,1767199842013,-1089.48,0.00025753,2]
[400213942,1767199842022,-707.69,0.00025753,2]
[400213943,1767199842032,-192.92,0.00025753,2]
[400213944,1767199842041,-2983.45,0.00025753,2]
[400213945,1767199842050,-9696.43,0.00025753,2]
[400213946,1767199842059,-2098.98,0.00025753,2]
[400213947,1767199842068,-422.36,0.00025753,2]
[400213948,1767199842078,-287.1810171,0.0002589,18]
[400213949,1767199842088,-1089.48,0.00026027,2]
[400213950,1767199842097,-707.69,0.00026027,2]
[400213951,1767199842107,-2983.45,0.00026027,2]
[400213952,1767199842116,-9696.43,0.00026027,2]
[400213953,1767199842126,-2098.98,0.00026027,2]
[400213954,1767199842135,-151.0,0.00026145,2]
[400213955,1767199842144,-1089.48,0.00026301,2]
[400213956,1767199842154,-707.69,0.00026301,2]
[400213957,1767199842163,-2983.45,0.00026301,2]
[400213958,1767199842173,-9696.43,0.00026301,2]
[400213959,1767199842182,-2098.98,0.00026301,2]
[400213960,1767199842191,-1089.48,0.00026575,2]
[400213961,1767199842202,-707.69,0.00026575,2]
[400213962,1767199842212,-2983.45,0.00026575,2]
[400213963,1767199842221,-9696.43,0.00026575,2]
[400213964,1767199842231,-2098.98,0.00026575,2]
[400213965,1767199842240,-1038.33,0.000266,14]
[400213966,1767199842249,-5000.0,0.00026621,2]
[400213967,1767199842259,-6464.62555377,0.0002669,9]
[400213968,1767199842268,-5000.0,0.0002669,7]
[400213969,1767199842277,-5000.0,0.0002669,10]
[400213970,1767199842287,-5000.0,0.0002669,9]
[400213971,1767199842296,-5000.0,0.0002669,10]
[400213972,1767199842305,-1041.66666667,0.000267,10]
[400213973,1767199842315,-1089.48,0.00026849,2]
[400213974,1767199842324,-707.69,0.00026849,2]
[400213975,1767199842334,-2983.45,0.00026849,2]
[400213976,1767199842343,-9696.43,0.00026849,2]
[400213977,1767199842353,-2098.98,0.00026849,2]
[400213978,1767199842363,-2000.0,0.00026866,7]
[400213979,1767199842373,-1089.48,0.00027123,2]
[400213980,1767199842383,-707.69,0.00027123,2]
[400213981,1767199842392,-2983.45,0.00027123,2]
[400213982,1767199842403,-9696.43,0.00027123,2]
[400213983,1767199842413,-2098.98,0.00027123,2]
[400213984,1767199842422,-1364.0,0.00027179,2]
[400213985,1767199842431,-2156.0,0.00027179,2]
[400213986,1767199842440,-627.0,0.00027179,2]
[400213987,1767199842451,-808.29180752,0.00027252,2]
[400213988,1767199842461,-1089.48,0.00027397,2]
[400213989,1767199842470,-707.69,0.00027397,2]
[400213990,1767199842480,-2983.45,0.00027397,2]
[400213991,1767199842489,-9696.43,0.00027397,2]
[400213992,1767199842498,-2098.98,0.00027397,2]
[400213993,1767199842507,-299.0,0.00027397,2]
[400213994,1767199842517,-299.0,0.00027397,2]
[400213995,1767199842527,-299.0,0.00027397,2]
[400213996,1767199842535,-299.0,0.00027397,2]
[400213997,1767199842545,-299.0,0.00027397,2]
[400213998,1767199842554,-299.0,0.00027397,2]
[400213999,1767199842564,-1203.18233645,0.00027397,5]
[400214000,1767199842573,-299.0,0.00027397,2]
[400214001,1767199842582,-299.0,0.00027397,2]
[400214002,1767199842591,-299.0,0.00027397,2]
[400214003,1767199842601,-299.0,0.00027397,2]
[400214004,1767199842610,-299.0,0.00027397,2]
[400214005,1767199842620,-299.0,0.00027397,2]
[400214006,1767199842629,-299.0,0.00027397,2]
[400214007,1767199842639,-299.0,0.00027397,2]
[400214008,1767199842649,-299.0,0.00027397,2]
[400214009,1767199842658,-299.0,0.00027397,2]
[400214010,1767199842668,-299.0,0.00027397,2]
[400214011,1767199842677,-299.0,0.00027397,2]
[400214012,1767199842687,-299.0,0.00027397,2]
[400214013,1767199842697,-299.0,0.00027397,2]
[400214014,1767199842706,-299.0,0.00027397,2]
[400214015,1767199842715,-299.0,0.00027397,2]
[400214016,1767199842725,-299.0,0.00027397,2]
[400214017,1767199842734,-299.0,0.00027397,2]
[400214018,1767199842744,-299.0,0.00027397,2]
[400214019,1767199842754,-299.0,0.00027397,2]
[400214020,1767199842764,-299.0,0.00027397,2]
[400214021,1767199842774,-299.0,0.00027397,2]
[400214022,1767199842783,-299.0,0.00027397,2]
[400214023,1767199842793,-299.0,0.00027397,2]
[400214024,1767199842803,-299.0,0.00027397,2]
[400214025,1767199842813,-299.0,0.00027397,2]
[400214026,1767199842822,-151.0,0.00027397,7]
[400214027,1767199842833,-195.753576,0.00027397,7]
[400214028,1767199842846,-2077.549415,0.00027397,7]
[400214029,1767199842855,-2077.549415,0.00027397,7]
[400214030,1767199842865,-2077.549415,0.00027397,7]
[400214031,1767199842875,-151.0,0.00027397,7]
[400214032,1767199842885,-2077.549415,0.00027397,7]
[400214033,1767199842896,-239.000196,0.00027397,7]
[400214034,1767199842906,-230.54366,0.00027397,7]
[400214035,1767199842918,-230.54366,0.00027397,7]
[400214036,1767199842928,-230.54366,0.00027397,7]
[400214037,1767199842938,-230.54366,0.00027397,7]
[400214038,1767199842949,-150.58382148,0.00027397,5]
[400214039,1767199842958,-150.0,0.00027397,5]
[400214040,1767199842967,-500.65812564,0.00027397,5]
[400214041,1767199842977,-2000.0,0.00027513,7]
[400214042,1767199842986,-2000.0,0.00027522,7]
[400214043,1767199842995,-2000.0,0.0002753,7]
[400214044,1767199843005,-2000.0,0.00027539,7]
[400214045,1767199843015,-2000.0,0.00027548,7]
[400214046,1767199843024,-2000.0,0.00027557,7]
[400214047,1767199843033,-2000.0,0.00027566,7]
[400214048,1767199843043,-2000.0,0.00027574,7]
[400214049,1767199843052,-2000.0,0.00027583,7]
[400214050,1767199843061,-2000.0,0.00027592,7]
[400214051,1767199843070,-2000.0,0.00027601,7]
[400214052,1767199843080,-2000.0,0.0002761,7]
[400214053,1767199843089,-2000.0,0.00027618,7]
[400214054,1767199843099,-2000.0,0.00027627,7]
[400214055,1767199843108,-2000.0,0.00027636,7]
[400214056,1767199843118,-2000.0,0.00027645,7]
[400214057,1767199843127,-2000.0,0.00027654,7]
[400214058,1767199843136,-151.0,0.00027654,7]
[400214059,1767199843146,-151.0,0.00027654,7]
[400214060,1767199843156,-151.0,0.00027654,7]
[400214061,1767199843166,-514.72487,0.00027654,7]
[400214062,1767199843176,-514.72487,0.00027654,7]
[400214063,1767199843186,-151.0,0.00027654,7]
[400214064,1767199843196,-514.72487,0.00027654,7]
[400214065,1767199843206,-151.0,0.00027654,7]
[400214066,1767199843216,-514.72487,0.00027654,7]
[400214067,1767199843225,-2000.0,0.00027662,7]
[400214068,1767199843235,-1089.48,0.00027671,2]
[400214069,1767199843244,-707.69,0.00027671,2]
[400214070,1767199843254,-2983.45,0.00027671,2]
[400214072,1767199843263,-9696.43,0.00027671,2]
[400214074,1767199843272,-2098.98,0.00027671,2]
[400214076,1767199843282,-2000.0,0.00027671,7]
[400214077,1767199843292,-2000.0,0.0002768,7]
[400214079,1767199843301,-2000.0,0.00027689,7]
[400214080,1767199843310,-2000.0,0.00027698,7]
[400214082,1767199843320,-2000.0,0.00027706,7]
[400214084,1767199843329,-2000.0,0.00027715,7]
[400214085,1767199843339,-2000.0,0.00027724,7]
[400214086,1767199843348,-2000.0,0.00027733,7]
[400214087,1767199843358,-2000.0,0.00027742,7]
[400214088,1767199843367,-2000.0,0.0002775,7]
[400214090,1767199843376,-2000.0,0.00027759,7]
[400214092,1767199843386,-2000.0,0.00027768,7]
[400214094,1767199843395,-2000.0,0.00027777,7]
[400214096,1767199843404,-2000.0,0.00027786,7]
[400214098,1767199843413,-2000.0,0.00027794,7]
[400214100,1767199843422,-2000.0,0.00027803,7]
[400214102,1767199843432,-2000.0,0.00027812,7]
[400214104,1767199843441,-2000.0,0.00027821,7]
[400214105,1767199843451,-2000.0,0.0002783,7]
[400214106,1767199843461,-2000.0,0.00027838,7]
[400214107,1767199843470,-2000.0,0.00027847,7]
[400214108,1767199843479,-2000.0,0.00027856,7]
[400214109,1767199843488,-2000.0,0.00027865,7]
[400214110,1767199843497,-2000.0,0.00027874,7]
[400214111,1767199843507,-2000.0,0.00027882,7]
[400214112,1767199843516,-724.901795,0.00027891,7]
[400214113,1767199843526,-724.901795,0.00027891,7]
[400214114,1767199843535,-151.0,0.00027891,7]
[400214115,1767199843544,-724.901795,0.00027891,7]
[400214116,1767199843554,-724.901795,0.00027891,7]
[400214117,1767199843563,-151.0,0.00027891,7]
[400214118,1767199843572,-151.0,0.00027891,7]
[400214119,1767199843582,-151.743207,0.00027891,7]
[400214120,1767199843591,-151.0,0.00027891,7]
[400214121,1767199843600,-151.278502,0.00027891,7]
[400214122,1767199843610,-151.0,0.00027891,7]
[400214123,1767199843619,-151.0,0.00027891,7]
[400214124,1767199843629,-151.0,0.00027891,7]
[400214125,1767199843638,-151.0,0.00027891,7]
[400214126,1767199843648,-151.0,0.00027891,7]
[400214127,1767199843657,-2000.0,0.00027891,7]
[400214128,1767199843667,-2000.0,0.000279,7]
[400214129,1767199843676,-173.85,0.000279,7]
[400214130,1767199843685,-2000.0,0.00027909,7]
[400214131,1767199843694,-2000.0,0.00027918,7]
[400214132,1767199843705,-2000.0,0.00027926,7]
[400214133,1767199843714,-2000.0,0.00027935,7]
[400214134,1767199843723,-2000.0,0.00027944,7]
[400214135,1767199843733,-1089.48,0.00027945,2]
[400214136,1767199843742,-707.69,0.00027945,2]
[400214137,1767199843752,-2983.45,0.00027945,2]
[400214138,1767199843762,-9696.43,0.00027945,2]
[400214139,1767199843771,-2098.98,0.00027945,2]
[400214140,1767199843781,-152.36606131,0.00027945,5]
[400214141,1767199843791,-1041.66666667,0.00028,7]
[400214142,1767199843800,-1041.66666667,0.00028,7]
[400214143,1767199843810,-166.112827,0.00028,7]
[400214144,1767199843819,-151.0,0.00028,7]
[400214145,1767199843829,-151.0,0.00028,7]
[400214146,1767199843840,-151.0,0.00028,7]
[400214147,1767199843851,-151.0,0.00028,7]
[400214148,1767199843860,-151.0,0.00028,7]
[400214149,1767199843870,-151.0,0.00028,7]
[400214150,1767199843880,-343.01000278,0.00028,2]
[400214151,1767199843889,-151.0,0.00028022,3]
[400214152,1767199843899,-9686.67,0.000281,2]
[400214153,1767199843908,-151.0,0.000281,7]
[400214154,1767199843918,-151.0,0.000281,7]
[400214155,1767199843928,-151.0,0.000281,7]
[400214156,1767199843939,-151.0,0.000281,7]
[400214157,1767199843950,-151.0,0.000281,7]
[400214158,1767199843959,-151.0,0.000281,7]
[400214159,1767199843969,-151.0,0.000281,7]
[400214160,1767199843978,-151.0,0.000281,7]
[400214161,1767199843987,-151.0,0.000281,7]
[400214162,1767199843996,-151.0,0.000281,7]
[400214163,1767199844005,-212.349887,0.000281,7]
[400214164,1767199844015,-212.349887,0.000281,7]
[400214165,1767199844024,-151.0,0.000281,7]
[400214166,1767199844033,-212.349887,0.000281,7]
[400214167,1767199844042,-151.0,0.000281,7]
[400214168,1767199844051,-212.349887,0.000281,7]
[400214169,1767199844060,-151.0,0.000281,7]
[400214170,1767199844070,-247.168557,0.000281,7]
[400214171,1767199844079,-151.0,0.000281,7]
[400214172,1767199844088,-151.0,0.000281,7]
[400214173,1767199844097,-151.0,0.000281,7]
[400214174,1767199844107,-151.0,0.000281,7]
[400214175,1767199844116,-151.0,0.000281,7]
[400214176,1767199844125,-151.0,0.000281,7]
[400214177,1767199844135,-151.0,0.000281,7]
[400214178,1767199844144,-151.0,0.000281,7]
[400214179,1767199844154,-151.0,0.000281,7]
[400214180,1767199844163,-151.0,0.000281,7]
[400214181,1767199844173,-231.619928,0.000281,7]
[400214182,1767199844182,-151.0,0.000281,7]
[400214183,1767199844191,-151.0,0.000281,7]
[400214184,1767199844203,-151.0,0.000281,7]
[400214186,1767199844212,-152.611704,0.000281,7]
[400214187,1767199844221,-151.0,0.000281,7]
[400214189,1767199844231,-177.488115,0.000281,7]
[400214191,1767199844241,-1089.71635778,0.00028219,2]
[400214193,1767199844250,-707.81054229,0.00028219,2]
[400214195,1767199844260,-151.0,0.00028219,7]
[400214197,1767199844269,-151.0,0.00028219,7]
[400214199,1767199844279,-151.0,0.00028219,7]
[400214201,1767199844289,-160.429789,0.00028219,7]
[400214203,1767199844299,-2983.47159298,0.00028219,2]
[400214205,1767199844308,-9696.53097059,0.00028219,2]
[400214207,1767199844317,-2099.08,0.00028219,2]
[400214209,1767199844327,-200.54705607,0.00028276,20]
[400214211,1767199844336,-245.13,0.000283,2]
[400214213,1767199844346,-179.85611511,0.00028347,2]
[400214215,1767199844355,-24425.5686256,0.0002876,7]
[400214217,1767199844364,-160.0,0.00029028,3]
[400214219,1767199844374,-200.54705607,0.00029154,21]
[400214220,1767199844384,-867.91989168,0.00029252,2]
[400214221,1767199844393,-160.6,0.000294,7]
[400214222,1767199844403,-165.71,0.000294,7]
[400214223,1767199844412,-1038.33,0.000295,14]
[400214224,1767199844421,-151.0,0.00029898,4]
[400214225,1767199844431,-159.4639658,0.0003,5]
[400214226,1767199844440,-173.85,0.0003,7]
[400214227,1767199844449,-350.27397155,0.00030028,7]
[400214228,1767199844458,-200.54705607,0.00030032,23]
[400214229,1767199844467,-160.0,0.00030075,4]
[400214230,1767199844476,-2000.0,0.00030149,7]
[400214231,1767199844486,-1100.0,0.00030173,7]
[400214232,1767199844495,-1364.0,0.00030179,2]
[400214233,1767199844504,-2156.0,0.00030179,2]
[400214234,1767199844513,-627.0,0.00030179,2]
[400214235,1767199844523,-1100.0,0.00030229,7]
[400214236,1767199844531,-161.66490995,0.00030343,7]
[400214237,1767199844541,-1100.0,0.00030381,7]
[400214238,1767199844551,-1100.0,0.00030382,7]
[400214240,1767199844560,-1100.0,0.00030458,7]
[400214242,1767199844570,-1100.0,0.00030529,7]
[400214244,1767199844579,-1100.0,0.00030548,7]
[400214245,1767199844588,-819.5,0.00030576,30]
[400214248,1767199844597,-1226.0,0.00030576,30]
[400214249,1767199844606,-19069.0,0.00030576,30]
[400214263,1767199844727,-1100.0,0.00030608,7]
[400214265,1767199844737,-1100.0,0.00030777,7]
[400214268,1767199844748,-500.0,0.00030817,7]
[400214270,1767199844757,-1100.0,0.00030858,7]
[400214271,1767199844766,-200.54705607,0.0003091,24]
[400214273,1767199844776,-1100.0,0.00030929,7]
[400214275,1767199844785,-5000.0,0.00030954,2]
[400214277,1767199844795,-956.2,0.00030958,30]
[400214279,1767199844804,-198.07485529,0.00031,120]
[400214281,1767199844813,-192.73524426,0.00031,120]
[400214283,1767199844823,-186.28215455,0.00031,120]
[400214285,1767199844832,-162.37843674,0.00031,120]
[400214287,1767199844844,-193.78459303,0.00031,120]
[400214289,1767199844853,-178.86741209,0.00031,120]
[400214291,1767199844862,-161.0131865,0.00031,120]
[400214293,1767199844871,-198.40418643,0.00031,120]
[400214295,1767199844880,-183.49170094,0.00031,120]
[400214296,1767199844891,-1430.86618739,0.00031,120]
[400214298,1767199844900,-183.42010434,0.00031,120]
[400214300,1767199844908,-309.65070131,0.00031,120]
[400214302,1767199844918,-206.24088796,0.00031,120]
[400214304,1767199844928,-1100.0,0.00031058,7]
[400214306,1767199844937,-160.0,0.00031122,5]
[400214308,1767199844946,-1100.0,0.00031129,7]
[400214310,1767199844956,-1100.0,0.00031131,7]
[400214312,1767199844965,-500.0,0.00031138,7]
[400214314,1767199844975,-500.0,0.00031151,7]
[400214316,1767199844985,-927.54797584,0.00031252,2]
[400214318,1767199844994,-9686.67,0.000313,2]
[400214320,1767199845003,-500.0,0.00031335,7]
[400214322,1767199845013,-161.0,0.0003137,46]
[400214324,1767199845022,-500.0,0.0003138,7]
[400214326,1767199845031,-1038.33,0.000315,14]
[400214328,1767199845041,-956.2,0.00031506,31]
[400214330,1767199845052,-1100.0,0.00031508,7]
[400214332,1767199845061,-1100.0,0.00031509,7]
[400214334,1767199845071,-1100.0,0.00031518,7]
[400214336,1767199845080,-173.85,0.000316,7]
[400214338,1767199845089,-1100.0,0.00031694,7]
[400214340,1767199845098,-151.0,0.00031774,5]
[400214342,1767199845108,-367.96456977,0.00031784,15]
[400214344,1767199845118,-200.54705607,0.00031789,25]
[400214346,1767199845127,-1100.0,0.00031811,7]
[400214348,1767199845136,-500.0,0.00031859,7]
[400214350,1767199845145,-192.73524426,0.000319,120]
[400214352,1767199845155,-186.28215455,0.000319,120]
[400214354,1767199845165,-193.78459303,0.000319,120]
[400214356,1767199845174,-161.0131865,0.000319,120]
[400214358,1767199845183,-198.40418643,0.000319,120]
[400214360,1767199845192,-183.49170094,0.000319,120]
[400214362,1767199845202,-1430.86618739,0.000319,120]
[400214364,1767199845212,-183.42010434,0.000319,120]
[400214365,1767199845222,-1100.0,0.00031935,7]
[400214367,1767199845232,-1017.21903832,0.00032,7]
[400214370,1767199845241,-956.2,0.00032054,32]
[400214371,1767199845252,-1100.0,0.00032064,7]
[400214373,1767199845261,-1100.0,0.00032116,7]
[400214375,1767199845270,-1100.0,0.00032127,7]
[400214377,1767199845279,-160.0,0.00032169,6]
[400214379,1767199845288,-1100.0,0.0003217,7]
[400214381,1767199845298,-1100.0,0.00032242,7]
[400214383,1767199845307,-1100.0,0.00032261,7]
[400214385,1767199845318,-1100.0,0.00032352,7]
[400214388,1767199845328,-1718.46508754,0.00032392,7]
[400214391,1767199845337,-500.0,0.00032411,7]
[400214394,1767199845347,-500.0,0.00032471,7]
[400214397,1767199845357,-285.47643138,0.00032489,2]
[400214400,1767199845367,-285.47443507,0.00032489,2]
[400214402,1767199845376,-285.47443307,0.00032489,2]
[400214405,1767199845385,-285.47443306,0.00032489,2]
[400214408,1767199845395,-285.47443307,0.00032489,2]
[400214410,1767199845403,-285.47443307,0.00032489,2]
[400214413,1767199845413,-956.2,0.00032602,33]
[400214416,1767199845422,-200.54705607,0.00032667,27]
[400214418,1767199845432,-11146.7026518,0.00032743,2]
[400214421,1767199845441,-39760.0083894,0.00032743,2]
[400214424,1767199845450,-598.4651806,0.00032743,2]
[400214426,1767199845460,-5000.0,0.00032838,7]
[400214429,1767199845471,-5000.0,0.00032876,5]
[400214432,1767199845480,-5000.0,0.00032876,10]
[400214435,1767199845489,-781.52,0.00032877,10]
[400214438,1767199845499,-651.27,0.00032877,10]
[400214441,1767199845509,-500.0,0.00032877,5]
[400214443,1767199845518,-150.0,0.00032877,5]
[400214445,1767199845527,-192.73524426,0.000329,120]
[400214447,1767199845537,-186.28215455,0.000329,120]
[400214449,1767199845546,-198.40418643,0.000329,120]
[400214451,1767199845555,-183.49170094,0.000329,120]
[400214453,1767199845565,-1430.86618739,0.000329,120]
[400214455,1767199845574,-183.42010434,0.000329,120]
[400214457,1767199845584,-5000.0,0.00032939,12]
[400214459,1767199845593,-5000.0,0.00032999,14]
[400214461,1767199845602,-5000.0,0.00032999,15]
[400214463,1767199845611,-5000.0,0.00032999,15]
[400214465,1767199845620,-151.0,0.00032999,20]
[400214467,1767199845629,-250.0,0.00032999,20]
[400214469,1767199845639,-496.47127164,0.00032999,20]
[400214471,1767199845648,-250.0,0.00032999,20]
[400214473,1767199845658,-514.84070869,0.00032999,20]
[400214475,1767199845667,-250.0,0.00032999,20]
[400214477,1767199845677,-500.0,0.00032999,20]
[400214479,1767199845686,-533.88981491,0.00032999,20]
[400214481,1767199845695,-250.0,0.00032999,20]
[400214483,1767199845705,-500.0,0.00032999,20]
[400214485,1767199845714,-553.64373807,0.00032999,20]
[400214487,1767199845723,-250.0,0.00032999,20]
[400214489,1767199845732,-500.0,0.00032999,20]
[400214491,1767199845742,-574.12855637,0.00032999,20]
[400214493,1767199845751,-250.0,0.00032999,20]
[400214495,1767199845760,-500.0,0.00032999,20]
[400214497,1767199845770,-595.37131296,0.00032999,20]
[400214499,1767199845779,-250.0,0.00032999,20]
[400214501,1767199845789,-500.0,0.00032999,20]
[400214503,1767199845798,-617.40005154,0.00032999,20]
[400214505,1767199845808,-250.0,0.00032999,20]
[400214507,1767199845817,-500.0,0.00032999,20]
[400214509,1767199845826,-640.24385345,0.00032999,20]
[400214511,1767199845838,-250.0,0.00032999,20]
[400214513,1767199845848,-500.0,0.00032999,20]
[400214515,1767199845858,-663.93287602,0.00032999,20]
[400214517,1767199845867,-250.0,0.00032999,20]
[400214519,1767199845876,-500.0,0.00032999,20]
[400214521,1767199845886,-688.49839244,0.00032999,20]
[400214523,1767199845895,-500.0,0.00032999,20]
[400214525,1767199845903,-713.97283296,0.00032999,20]
[400214527,1767199845915,-500.0,0.00032999,20]
[400214529,1767199845924,-250.0,0.00032999,20]
[400214531,1767199845933,-740.38982778,0.00032999,20]
[400214533,1767199845943,-500.0,0.00032999,20]
[400214535,1767199845952,-767.7842514,0.00032999,20]
[400214537,1767199845962,-500.0,0.00032999,20]
[400214539,1767199845971,-796.19226871,0.00032999,20]
[400214541,1767199845981,-500.0,0.00032999,20]
[400214543,1767199845990,-825.65138265,0.00032999,20]
[400214545,1767199845999,-500.0,0.00032999,20]
[400214546,1767199846008,-500.0,0.00032999,20]
[400214548,1767199846018,-1860.91764131,0.00033,120]
[400214550,1767199846027,-166.0,0.00033,14]
[400214552,1767199846036,-9686.67,0.00033,14]
[400214554,1767199846046,-1041.66666667,0.00033,120]
[400214556,1767199846056,-8028.51183,0.00033,4]
[400214559,1767199846066,-1016.0,0.00033,7]
[400214560,1767199846075,-287.47275409,0.00033005,2]
[400214562,1767199846084,-956.2,0.0003315,34]
[400214564,1767199846093,-1364.0,0.00033179,2]
[400214566,1767199846102,-2156.0,0.00033179,2]
[400214568,1767199846111,-627.0,0.00033179,2]
[400214571,1767199846120,-160.0,0.00033216,7]
[400214574,1767199846129,-2863.2521,0.0003322,30]
[400214576,1767199846138,-987.17606,0.00033252,120]
[400214579,1767199846147,-1038.33,0.000333,30]
[400214582,1767199846156,-173.85,0.000333,7]
[400214584,1767199846165,-1004.98248976,0.00033425,5]
[400214587,1767199846175,-2000.0,0.00033433,7]
[400214589,1767199846184,-160.0,0.00033436,13]
[400214592,1767199846192,-200.54705607,0.00033545,28]
[400214595,1767199846202,-151.0,0.0003365,6]
[400214597,1767199846211,-956.2,0.00033698,35]
[400214599,1767199846219,-250.0,0.00033699,5]
[400214601,1767199846229,-200.26076,0.000337,120]
[400214604,1767199846238,-295.735,0.000338,30]
[400214607,1767199846246,-295.73,0.000338,30]
[400214609,1767199846256,-192.73524426,0.000339,120]
[400214612,1767199846265,-186.28215455,0.000339,120]
[400214615,1767199846275,-183.49170094,0.000339,120]
[400214617,1767199846284,-1430.86618739,0.000339,120]
[400214620,1767199846293,-160.0,0.00033932,14]
[400214623,1767199846303,-776.0,0.000341,2]